fUST/lending_fUST_20240408
["ID","MTS","AMOUNT","RATE_DAILY","PERIOD"]
[321864763,1712574632024,-166.666666,0.00055125,2]
[321864764,1712574632033,-396.886863,0.00055577,30]
[321864765,1712574632042,-165.59015419,0.00055818,2]
[321864766,1712574632051,-166.666666,0.00056628,2]
[321864767,1712574632060,-171.815786,0.00056655,2]
[321864768,1712574632069,-165.59015419,0.00057018,2]
[321864769,1712574632077,-2059.79962875,0.000579,2]
[321864770,1712574632086,-166.666666,0.00058131,2]
[321864771,1712574632095,-165.59015419,0.00058218,2]
[321864772,1712574632104,-3000.0,0.00058911,10]
[321864773,1712574632112,-2000.0,0.00059,30]
[321864774,1712574632121,-216.76594596,0.00059066,4]
[321864775,1712574632130,-165.59015419,0.00059417,2]
[321864776,1712574632139,-308.7243974,0.00059452,2]
[321864777,1712574632148,-168.9285218,0.00059452,2]
[321864778,1712574632156,-306.0,0.00059478,60]
[321864779,1712574632165,-153.0,0.00059478,2]
[321864780,1712574632173,-153.0,0.00059478,2]
[321864781,1712574632183,-153.0,0.00059478,2]
[321864782,1712574632192,-153.0,0.00059478,2]
[321864783,1712574632200,-153.0,0.00059478,2]
[321864784,1712574632209,-2000.0,0.000595,30]
[321864785,1712574632218,-166.666666,0.00059634,2]
[321864786,1712574632227,-316.79706142,0.00059699,14]
[321864787,1712574632235,-158.42642321,0.000597,2]
[321864788,1712574632245,-307.2047061,0.00059752,60]
[321864789,1712574632254,-4257.8191643,0.00059798,4]
[321864790,1712574632266,-1294.22971352,0.00059798,4]
[321864791,1712574632275,-166.90512393,0.00059798,4]
[321864792,1712574632284,-251.92986971,0.00059799,2]
[321864793,1712574632292,-8600.73795772,0.00059799,4]
[321864794,1712574632301,-1722.19682815,0.00059799,4]
[321864795,1712574632310,-8000.0,0.000598,50]
[321864796,1712574632319,-7661.7896612,0.000598,40]
[321864797,1712574632328,-242.52421055,0.00059966,4]
[321864798,1712574632337,-1484.4319684,0.00059967,4]
[321864799,1712574632346,-155.00173721,0.00059968,4]
[321864800,1712574632355,-2119.45114629,0.00059968,4]
[321864801,1712574632364,-537.45185021,0.00059968,4]
[321864802,1712574632372,-1544.78067024,0.00059968,4]
[321864803,1712574632382,-1572.33263983,0.00059968,2]
[321864804,1712574632391,-223.22095759,0.00059969,120]
[321864805,1712574632400,-747.19962463,0.00059969,4]
[321864806,1712574632410,-5570.48459656,0.0005997,61]
[321864807,1712574632418,-4685.99918881,0.0005997,30]
[321864808,1712574632429,-344.05485939,0.0005997,30]
[321864839,1712574637952,-941.43610251,0.0005997,30]
[321864840,1712574638015,-4272.43443914,0.0005997,30]
[321864874,1712574640219,-59819.69367512,0.0005997,30]
[321864875,1712574640298,-1000.0,0.0005997,30]
[321864955,1712574644041,-40922.85432293,0.0005997,30]
[321864957,1712574644051,-307.0,0.0006,120]
[321864959,1712574644060,-222.73672101,0.0006,7]
[321864961,1712574644071,-2000.0,0.0006,120]
[321864963,1712574644081,-1500.0,0.0006,120]
[321864965,1712574644091,-2000.0,0.0006,30]
[321864967,1712574644100,-2000.0,0.0006,30]
[321864969,1712574644109,-1581.0,0.0006,30]
[321864971,1712574644119,-2000.0,0.00060121,120]
[321864973,1712574644128,-308.98539759,0.00060211,7]
[321864975,1712574644137,-283.20157359,0.00060211,7]
[321864977,1712574644146,-217.7410829,0.00060211,7]
[321864979,1712574644155,-253.47782713,0.00060212,7]
[321864981,1712574644165,-11609.626131,0.00060213,40]
[321864984,1712574644174,-187.17072048,0.00060271,7]
[321864985,1712574644183,-186.35488039,0.00060271,7]
[321864988,1712574644193,-170.63807538,0.00060271,7]
[321864990,1712574644202,-214.77448763,0.00060271,7]
[321864992,1712574644210,-334.75102192,0.00060271,7]
[321864994,1712574644220,-811.98237118,0.00060271,7]
[321864996,1712574644229,-193.53340394,0.00060271,7]
[321864998,1712574644239,-155.0,0.00060271,7]
[321864999,1712574644247,-185.08309679,0.00060273,120]
[321865002,1712574644257,-12653.80948728,0.00060273,7]
[321865003,1712574644268,-500.0,0.00060273,120]
[321865005,1712574644277,-500.0,0.00060273,120]
[321865009,1712574644294,-500.0,0.00060273,120]
[321865011,1712574644310,-500.0,0.00060273,120]
[321865014,1712574644323,-500.0,0.00060273,120]
[321865016,1712574644337,-500.0,0.00060273,120]
[321865019,1712574644352,-500.0,0.00060273,120]
[321865021,1712574644367,-500.0,0.00060273,120]
[321865024,1712574644380,-500.0,0.00060273,120]
[321865026,1712574644393,-500.0,0.00060273,120]
[321865029,1712574644408,-500.0,0.00060273,120]
[321865032,1712574644423,-184.50183358,0.00060273,120]
[321865034,1712574644438,-500.0,0.00060273,120]
[321865037,1712574644450,-500.0,0.00060273,120]
[321865039,1712574644462,-500.0,0.00060273,120]
[321865042,1712574644477,-500.0,0.00060273,120]
[321865044,1712574644492,-500.0,0.00060273,120]
[321865047,1712574644506,-500.0,0.00060273,120]
[321865049,1712574644522,-161.48303183,0.00060273,120]
[321865052,1712574644536,-500.0,0.00060273,120]
[321865055,1712574644554,-500.0,0.00060273,120]
[321865057,1712574644569,-500.0,0.00060273,120]
[321865060,1712574644581,-521.87263848,0.00060273,120]
[321865062,1712574644592,-531.06223605,0.00060273,120]
[321865064,1712574644604,-500.0,0.00060273,120]
[321865066,1712574644617,-500.0,0.00060273,120]
[321865069,1712574644629,-500.0,0.00060273,120]
[321865071,1712574644641,-500.0,0.00060273,120]
[321865074,1712574644654,-500.0,0.00060273,120]
[321865076,1712574644666,-572.19280178,0.00060273,120]
[321865078,1712574644678,-312.01041441,0.00060273,120]
[321865080,1712574644689,-500.0,0.00060273,120]
[321865083,1712574644702,-500.0,0.00060273,120]
[321865085,1712574644713,-500.0,0.00060273,120]
[321865087,1712574644726,-554.71,0.00060273,120]
[321865090,1712574644738,-500.0,0.00060273,120]
[321865092,1712574644750,-512.82757337,0.00060273,120]
[321865094,1712574644762,-500.0,0.00060273,120]
[321865097,1712574644774,-500.0,0.00060273,120]
[321865099,1712574644786,-500.0,0.00060273,120]
[321865101,1712574644799,-500.0,0.00060273,120]
[321865103,1712574644811,-500.0,0.00060273,120]
[321865106,1712574644823,-500.0,0.00060273,120]
[321865108,1712574644836,-500.0,0.00060273,120]
[321865110,1712574644848,-1385.35,0.00060273,120]
[321865113,1712574644860,-500.0,0.00060273,120]
[321865115,1712574644873,-500.0,0.00060273,120]
[321865117,1712574644885,-1821.22,0.00060273,120]
[321865119,1712574644896,-500.0,0.00060273,120]
[321865122,1712574644908,-500.0,0.00060273,120]
[321865124,1712574644921,-500.0,0.00060273,120]
[321865126,1712574644933,-506.34696349,0.00060273,120]
[321865129,1712574644945,-500.0,0.00060273,120]
[321865131,1712574644957,-500.0,0.00060273,120]
[321865133,1712574644969,-500.0,0.00060273,120]
[321865136,1712574644981,-500.0,0.00060273,120]
[321865138,1712574644992,-500.0,0.00060273,120]
[321865140,1712574645001,-500.0,0.00060273,120]
[321865142,1712574645011,-342.30639657,0.00060273,120]
[321865145,1712574645119,-496.22080966,0.00060273,120]
[321865146,1712574645132,-500.0,0.00060273,120]
[321865147,1712574645142,-500.0,0.00060273,120]
[321865148,1712574645150,-500.0,0.00060273,120]
[321865149,1712574645159,-500.0,0.00060273,120]
[321865150,1712574645169,-500.0,0.00060273,120]
[321865151,1712574645178,-500.0,0.00060273,120]
[321865152,1712574645187,-373.18659485,0.00060273,120]
[321865153,1712574645196,-500.0,0.00060273,120]
[321865154,1712574645206,-500.0,0.00060273,120]
[321865155,1712574645215,-1438.93,0.00060273,120]
[321865156,1712574645224,-500.0,0.00060273,120]
[321865157,1712574645233,-730.86,0.00060273,120]
[321865158,1712574645242,-500.0,0.00060273,120]
[321865160,1712574645251,-500.0,0.00060273,120]
[321865162,1712574645260,-500.0,0.00060273,120]
[321865164,1712574645270,-500.0,0.00060273,120]
[321865166,1712574645279,-500.0,0.00060273,120]
[321865168,1712574645287,-500.0,0.00060273,120]
[321865170,1712574645297,-500.0,0.00060273,120]
[321865172,1712574645305,-510.97477035,0.00060273,120]
[321865174,1712574645314,-500.0,0.00060273,120]
[321865176,1712574645323,-500.0,0.00060273,120]
[321865178,1712574645334,-603.27,0.00060273,120]
[321865180,1712574645343,-603.27,0.00060273,120]
[321865182,1712574645352,-603.27,0.00060273,120]
[321865184,1712574645361,-603.27,0.00060273,120]
[321865186,1712574645369,-603.27,0.00060273,120]
[321865188,1712574645378,-304.99406848,0.00060273,120]
[321865190,1712574645387,-500.0,0.00060273,120]
[321865192,1712574645397,-514.58488881,0.00060273,120]
[321865195,1712574645406,-500.0,0.00060273,120]
[321865197,1712574645416,-222.24689741,0.00060273,120]
[321865199,1712574645425,-500.0,0.00060273,120]
[321865201,1712574645434,-445.88688046,0.00060273,120]
[321865203,1712574645443,-500.0,0.00060273,120]
[321865205,1712574645452,-582.78092893,0.00060273,120]
[321865207,1712574645461,-225.54366451,0.00060273,120]
[321865209,1712574645470,-875.97,0.00060273,120]
[321865211,1712574645479,-500.0,0.00060273,120]
[321865213,1712574645488,-500.0,0.00060273,120]
[321865215,1712574645497,-500.0,0.00060273,120]
[321865217,1712574645506,-500.0,0.00060273,120]
[321865220,1712574645520,-500.0,0.00060273,7]
[321865223,1712574645530,-500.0,0.00060273,120]
[321865226,1712574645539,-541.7,0.00060273,120]
[321865229,1712574645548,-503.42289488,0.00060273,120]
[321865232,1712574645558,-500.0,0.00060273,120]
[321865235,1712574645567,-502.27491256,0.00060273,120]
[321865238,1712574645576,-504.58159925,0.00060273,120]
[321865241,1712574645587,-500.0,0.00060273,120]
[321865244,1712574645596,-1929.5,0.00060273,120]
[321865247,1712574645606,-500.0,0.00060273,120]
[321865250,1712574645615,-500.0,0.00060273,120]
[321865253,1712574645624,-500.0,0.00060273,120]
[321865256,1712574645632,-500.0,0.00060273,120]
[321865259,1712574645641,-500.0,0.00060273,120]
[321865262,1712574645650,-500.0,0.00060273,120]
[321865265,1712574645659,-500.0,0.00060273,120]
[321865267,1712574645668,-500.0,0.00060273,120]
[321865269,1712574645677,-500.0,0.00060273,120]
[321865271,1712574645687,-583.76471091,0.00060273,120]
[321865273,1712574645695,-500.0,0.00060273,120]
[321865275,1712574645704,-500.0,0.00060273,120]
[321865276,1712574645714,-500.0,0.00060273,120]
[321865278,1712574645724,-578.87,0.00060273,120]
[321865281,1712574645734,-500.0,0.00060273,120]
[321865282,1712574645743,-500.86838768,0.00060273,120]
[321865285,1712574645754,-561.04,0.00060273,120]
[321865287,1712574645765,-500.0,0.00060273,120]
[321865288,1712574645774,-2464.34,0.00060273,2]
[321865290,1712574645782,-1000.0,0.00060273,120]
[321865292,1712574645791,-500.0,0.00060273,120]
[321865294,1712574645801,-500.0,0.00060273,120]
[321865295,1712574645809,-500.0,0.00060273,120]
[321865296,1712574645818,-500.0,0.00060273,120]
[321865297,1712574645826,-500.0,0.00060273,120]
[321865298,1712574645835,-488.21781981,0.00060273,120]
[321865299,1712574645847,-500.0,0.00060273,7]
[321865300,1712574645856,-500.0,0.00060273,120]
[321865301,1712574645865,-500.0,0.00060273,120]
[321865302,1712574645874,-500.0,0.00060273,120]
[321865303,1712574645883,-500.0,0.00060273,120]
[321865304,1712574645892,-419.63381787,0.00060273,120]
[321865305,1712574645901,-500.0,0.00060273,120]
[321865306,1712574645910,-648.15,0.00060273,120]
[321865307,1712574645919,-500.0,0.00060273,120]
[321865309,1712574645928,-500.0,0.00060273,120]
[321865310,1712574645937,-500.0,0.00060273,120]
[321865311,1712574645946,-500.0,0.00060273,120]
[321865312,1712574645955,-500.0,0.00060273,120]
[321865313,1712574645964,-769.77,0.00060273,120]
[321865314,1712574645973,-426.00410638,0.00060273,120]
[321865315,1712574645982,-500.0,0.00060273,120]
[321865316,1712574645991,-500.0,0.00060273,120]
[321865318,1712574646000,-176.85213408,0.00060273,120]
[321865320,1712574646008,-500.0,0.00060273,120]
[321865322,1712574646018,-500.0,0.00060273,120]
[321865324,1712574646027,-500.0,0.00060273,120]
[321865326,1712574646036,-500.0,0.00060273,120]
[321865328,1712574646045,-500.0,0.00060273,120]
[321865330,1712574646054,-500.0,0.00060273,120]
[321865332,1712574646063,-500.0,0.00060273,120]
[321865334,1712574646072,-500.0,0.00060273,120]
[321865336,1712574646081,-572.03,0.00060273,120]
[321865338,1712574646089,-500.0,0.00060273,120]
[321865340,1712574646098,-500.0,0.00060273,120]
[321865341,1712574646107,-500.0,0.00060273,120]
[321865343,1712574646116,-500.0,0.00060273,120]
[321865345,1712574646125,-512.87285513,0.00060273,120]
[321865347,1712574646134,-500.0,0.00060273,120]
[321865349,1712574646143,-189.47296159,0.00060273,120]
[321865351,1712574646152,-500.0,0.00060273,120]
[321865353,1712574646161,-500.0,0.00060273,120]
[321865355,1712574646170,-500.0,0.00060273,120]
[321865357,1712574646179,-585.98663152,0.00060273,120]
[321865359,1712574646188,-500.0,0.00060273,120]
[321865361,1712574646198,-500.0,0.00060273,120]
[321865363,1712574646207,-3561.94,0.00060273,90]
[321865365,1712574646217,-500.0,0.00060273,120]
[321865367,1712574646226,-2304.98,0.00060273,120]
[321865369,1712574646235,-2304.98,0.00060273,120]
[321865371,1712574646244,-2304.98,0.00060273,120]
[321865374,1712574646254,-2304.98,0.00060273,120]
[321865376,1712574646264,-2304.98,0.00060273,120]
[321865377,1712574646273,-2304.98,0.00060273,120]
[321865379,1712574646282,-500.0,0.00060273,120]
[321865381,1712574646291,-507.62450279,0.00060273,120]
[321865383,1712574646301,-206.93858699,0.00060273,120]
[321865385,1712574646310,-500.0,0.00060273,120]
[321865387,1712574646319,-500.0,0.00060273,120]
[321865389,1712574646328,-311.69791539,0.00060273,120]
[321865391,1712574646337,-500.0,0.00060273,120]
[321865393,1712574646346,-500.0,0.00060273,120]
[321865395,1712574646355,-1002.74,0.00060273,120]
[321865397,1712574646365,-4639.34,0.00060273,120]
[321865399,1712574646374,-500.0,0.00060273,120]
[321865401,1712574646383,-2333.33,0.00060273,120]
[321865403,1712574646392,-566.24,0.00060273,120]
[321865405,1712574646401,-773.11,0.00060273,120]
[321865407,1712574646411,-500.0,0.00060273,21]
[321865410,1712574646420,-2580.52,0.00060273,120]
[321865411,1712574646429,-500.0,0.00060273,120]
[321865413,1712574646438,-500.0,0.00060273,120]
[321865415,1712574646448,-500.0,0.00060273,120]
[321865417,1712574646457,-1143.2,0.00060273,120]
[321865419,1712574646466,-500.0,0.00060273,120]
[321865421,1712574646475,-500.0,0.00060273,120]
[321865423,1712574646484,-613.04,0.00060273,120]
[321865425,1712574646493,-500.0,0.00060273,120]
[321865427,1712574646502,-500.0,0.00060273,120]
[321865429,1712574646516,-500.0,0.00060273,120]
[321865431,1712574646524,-507.14118439,0.00060273,120]
[321865433,1712574646534,-798.63,0.00060273,120]
[321865435,1712574646543,-938.95,0.00060273,120]
[321865437,1712574646554,-500.0,0.00060273,120]
[321865439,1712574646562,-500.0,0.00060273,120]
[321865441,1712574646571,-500.0,0.00060273,120]
[321865443,1712574646581,-500.0,0.00060273,120]
[321865445,1712574646593,-500.0,0.00060273,120]
[321865447,1712574646603,-500.0,0.00060273,120]
[321865449,1712574646612,-500.0,0.00060273,120]
[321865451,1712574646621,-500.0,0.00060273,120]
[321865453,1712574646630,-560.59,0.00060273,120]
[321865455,1712574646641,-500.0,0.00060273,120]
[321865457,1712574646650,-500.0,0.00060273,120]
[321865459,1712574646660,-500.0,0.00060273,120]
[321865461,1712574646669,-500.0,0.00060273,120]
[321865463,1712574646679,-500.0,0.00060273,120]
[321865465,1712574646688,-1221.69,0.00060273,120]
[321865467,1712574646697,-500.0,0.00060273,120]
[321865469,1712574646707,-500.0,0.00060273,120]
[321865471,1712574646716,-500.0,0.00060273,120]
[321865474,1712574646726,-508.08338434,0.00060273,120]
[321865482,1712574646794,-500.0,0.00060273,120]
[321865484,1712574646812,-500.0,0.00060273,120]
[321865486,1712574646821,-500.0,0.00060273,120]
[321865488,1712574646830,-500.0,0.00060273,120]
[321865490,1712574646839,-500.0,0.00060273,120]
[321865492,1712574646847,-500.0,0.00060273,120]
[321865494,1712574646856,-171.87183758,0.00060273,120]
[321865496,1712574646865,-500.0,0.00060273,120]
[321865498,1712574646874,-500.0,0.00060273,120]
[321865500,1712574646883,-632.07,0.00060273,120]
[321865502,1712574646891,-641.4,0.00060273,120]
[321865504,1712574646900,-500.0,0.00060273,120]
[321865506,1712574646909,-500.0,0.00060273,120]
[321865508,1712574646917,-649.32294305,0.00060273,120]
[321865510,1712574646927,-500.0,0.00060273,120]
[321865512,1712574646936,-508.79542317,0.00060273,120]
[321865514,1712574646944,-500.0,0.00060273,120]
[321865516,1712574646953,-500.0,0.00060273,120]
[321865518,1712574646962,-573.19599118,0.00060273,120]
[321865519,1712574646971,-500.0,0.00060273,120]
[321865521,1712574646980,-500.0,0.00060273,120]
[321865523,1712574646989,-500.0,0.00060273,120]
[321865525,1712574646998,-500.0,0.00060273,120]
[321865528,1712574647008,-500.0,0.00060273,120]
[321865530,1712574647018,-500.0,0.00060273,120]
[321865532,1712574647027,-151.0,0.00060273,120]
[321865533,1712574647036,-500.0,0.00060273,120]
[321865535,1712574647045,-1145.83,0.00060273,120]
[321865537,1712574647054,-500.0,0.00060273,120]
[321865539,1712574647063,-350.0,0.00060273,120]
[321865541,1712574647072,-505.27124239,0.00060273,120]
[321865543,1712574647081,-500.0,0.00060273,120]
[321865545,1712574647090,-500.0,0.00060273,120]
[321865547,1712574647099,-500.0,0.00060273,120]
[321865549,1712574647108,-500.0,0.00060273,120]
[321865551,1712574647116,-1055.32,0.00060273,120]
[321865553,1712574647125,-500.0,0.00060273,120]
[321865555,1712574647134,-500.0,0.00060273,120]
[321865557,1712574647143,-500.0,0.00060273,120]
[321865559,1712574647152,-500.0,0.00060273,120]
[321865561,1712574647161,-728.67,0.00060273,120]
[321865563,1712574647170,-500.0,0.00060273,120]
[321865565,1712574647179,-500.0,0.00060273,120]
[321865567,1712574647189,-500.0,0.00060273,120]
[321865569,1712574647198,-500.0,0.00060273,120]
[321865570,1712574647207,-500.0,0.00060273,120]
[321865571,1712574647216,-500.0,0.00060273,120]
[321865572,1712574647225,-500.0,0.00060273,120]
[321865573,1712574647234,-500.0,0.00060273,120]
[321865574,1712574647243,-213.90867962,0.00060273,120]
[321865575,1712574647252,-500.0,0.00060273,120]
[321865576,1712574647262,-500.0,0.00060273,120]
[321865577,1712574647271,-500.0,0.00060273,120]
[321865578,1712574647279,-379.76200893,0.00060273,120]
[321865579,1712574647288,-500.0,0.00060273,120]
[321865580,1712574647297,-500.0,0.00060273,120]
[321865581,1712574647306,-500.0,0.00060273,120]
[321865582,1712574647315,-500.0,0.00060273,120]
[321865583,1712574647323,-5837.3,0.00060273,120]
[321865584,1712574647333,-500.0,0.00060273,120]
[321865585,1712574647341,-500.0,0.00060273,120]
[321865586,1712574647350,-500.0,0.00060273,120]
[321865587,1712574647359,-500.0,0.00060273,120]
[321865588,1712574647367,-504.79091618,0.00060273,120]
[321865590,1712574647377,-408.04024175,0.00060273,120]
[321865592,1712574647387,-552.92,0.00060273,120]
[321865594,1712574647397,-500.0,0.00060273,120]
[321865596,1712574647405,-356.14978825,0.00060273,120]
[321865598,1712574647414,-500.0,0.00060273,120]
[321865600,1712574647424,-521.8,0.00060273,60]
[321865602,1712574647432,-500.0,0.00060273,120]
[321865604,1712574647441,-500.0,0.00060273,120]
[321865606,1712574647451,-500.0,0.00060273,120]
[321865608,1712574647460,-500.0,0.00060273,120]
[321865610,1712574647469,-500.0,0.00060273,120]
[321865611,1712574647478,-500.0,0.00060273,120]
[321865613,1712574647487,-989.63,0.00060273,120]
[321865615,1712574647496,-500.0,0.00060273,120]
[321865617,1712574647507,-2982.49,0.00060273,120]
[321865620,1712574647521,-1900.0,0.00060273,120]
[321865621,1712574647531,-500.0,0.00060273,120]
[321865624,1712574647540,-500.0,0.00060273,120]
[321865626,1712574647550,-500.0,0.00060273,120]
[321865627,1712574647559,-782.0,0.00060273,120]
[321865629,1712574647569,-502.91538777,0.00060273,120]
[321865631,1712574647579,-500.0,0.00060273,120]
[321865633,1712574647589,-500.0,0.00060273,120]
[321865635,1712574647598,-500.0,0.00060273,120]
[321865637,1712574647607,-500.0,0.00060273,120]
[321865639,1712574647616,-1836.27,0.00060273,120]
[321865641,1712574647625,-2448.09,0.00060273,120]
[321865643,1712574647635,-397.59242367,0.00060273,120]
[321865645,1712574647644,-2093.71,0.00060273,120]
[321865647,1712574647654,-171.47422532,0.00060273,120]
[321865649,1712574647663,-500.0,0.00060273,120]
[321865651,1712574647672,-2304.98,0.0006031,120]
[321865653,1712574647682,-156.50748119,0.00060484,120]
[321865655,1712574647691,-2000.0,0.000605,30]
[321865657,1712574647700,-165.59015419,0.00060617,2]
[321865659,1712574647710,-2396.37639465,0.00060995,2]
[321865662,1712574647719,-1500.0,0.00061,120]
[321865664,1712574647729,-752.98993587,0.00061093,7]
[321865665,1712574647738,-156.25338756,0.00061093,7]
[321865667,1712574647747,-207.10165673,0.00061093,7]
[321865669,1712574647756,-2287.46901775,0.00061093,7]
[321865671,1712574647766,-723.58615626,0.00061093,7]
[321865673,1712574647775,-406.86199423,0.00061093,7]
[321865675,1712574647784,-158.18477113,0.00061093,7]
[321865677,1712574647794,-603.27,0.00061093,120]
[321865679,1712574647803,-155.55287126,0.00061094,7]
[321865681,1712574647812,-155.39512775,0.00061094,7]
[321865683,1712574647822,-1970.1783799,0.00061094,7]
[321865685,1712574647831,-3305.22191413,0.00061094,7]
[321865687,1712574647840,-603.27,0.00061094,120]
[321865689,1712574647849,-603.27,0.00061094,120]
[321865691,1712574647858,-2304.98,0.00061094,120]
[321865693,1712574647867,-2304.98,0.00061094,120]
[321865695,1712574647876,-2304.98,0.00061094,120]
[321865697,1712574647885,-3508.67,0.00061094,120]
[321865699,1712574647894,-707.84,0.00061095,120]
[321865701,1712574647903,-500.0,0.00061095,120]
[321865703,1712574647911,-500.0,0.00061095,120]
[321865705,1712574647920,-616.23763355,0.00061095,120]
[321865707,1712574647930,-400.88509628,0.00061095,120]
[321865709,1712574647939,-500.0,0.00061095,120]
[321865711,1712574647948,-500.0,0.00061095,120]
[321865713,1712574647957,-509.072174,0.00061095,120]
[321865715,1712574647966,-500.0,0.00061095,120]
[321865717,1712574647975,-500.0,0.00061095,120]
[321865719,1712574647984,-500.0,0.00061095,120]
[321865721,1712574647994,-500.0,0.00061095,120]
[321865723,1712574648003,-500.0,0.00061095,120]
[321865725,1712574648014,-500.0,0.00061095,120]
[321865727,1712574648023,-500.0,0.00061095,120]
[321865729,1712574648032,-500.0,0.00061095,120]
[321865731,1712574648041,-500.0,0.00061095,120]
[321865733,1712574648049,-500.0,0.00061095,120]
[321865735,1712574648058,-500.0,0.00061095,120]
[321865737,1712574648067,-554.71,0.00061095,120]
[321865739,1712574648076,-500.0,0.00061095,120]
[321865741,1712574648085,-511.19257044,0.00061095,120]
[321865743,1712574648094,-500.0,0.00061095,120]
[321865745,1712574648103,-500.0,0.00061095,120]
[321865747,1712574648112,-546.42236698,0.00061095,120]
[321865749,1712574648122,-1385.35,0.00061095,120]
[321865751,1712574648130,-203.78569127,0.00061095,120]
[321865753,1712574648139,-500.0,0.00061095,120]
[321865755,1712574648148,-1821.22,0.00061095,120]
[321865757,1712574648159,-523.579528,0.00061095,120]
[321865759,1712574648169,-500.0,0.00061095,120]
[321865761,1712574648178,-500.0,0.00061095,120]
[321865763,1712574648186,-513.86035411,0.00061095,120]
[321865765,1712574648196,-500.0,0.00061095,120]
[321865767,1712574648205,-466.47411882,0.00061095,120]
[321865769,1712574648214,-500.0,0.00061095,120]
[321865772,1712574648223,-500.0,0.00061095,120]
[321865774,1712574648232,-500.0,0.00061095,120]
[321865776,1712574648241,-500.0,0.00061095,120]
[321865778,1712574648251,-1438.93,0.00061095,120]
[321865779,1712574648261,-500.0,0.00061095,120]
[321865782,1712574648270,-730.86,0.00061095,120]
[321865790,1712574648341,-500.0,0.00061095,120]
[321865792,1712574648350,-500.0,0.00061095,120]
[321865794,1712574648359,-500.0,0.00061095,120]
[321865796,1712574648368,-500.0,0.00061095,120]
[321865798,1712574648378,-300.0,0.00061095,120]
[321865800,1712574648387,-500.0,0.00061095,120]
[321865802,1712574648396,-500.0,0.00061095,120]
[321865804,1712574648405,-505.08311533,0.00061095,120]
[321865805,1712574648414,-500.0,0.00061095,120]
[321865806,1712574648423,-500.0,0.00061095,120]
[321865808,1712574648432,-875.97,0.00061095,120]
[321865809,1712574648440,-500.0,0.00061095,120]
[321865811,1712574648450,-500.0,0.00061095,120]
[321865812,1712574648458,-500.0,0.00061095,7]
[321865814,1712574648467,-500.0,0.00061095,120]
[321865815,1712574648476,-500.0,0.00061095,120]
[321865817,1712574648485,-541.7,0.00061095,120]
[321865818,1712574648494,-500.0,0.00061095,120]
[321865820,1712574648508,-1929.5,0.00061095,120]
[321865822,1712574648518,-511.56262891,0.00061095,120]
[321865823,1712574648527,-500.0,0.00061095,120]
[321865825,1712574648536,-500.0,0.00061095,120]
[321865826,1712574648547,-506.35110032,0.00061095,120]
[321865828,1712574648556,-500.0,0.00061095,120]
[321865829,1712574648565,-529.06869402,0.00061095,120]
[321865831,1712574648573,-427.35979904,0.00061095,120]
[321865832,1712574648584,-500.0,0.00061095,120]
[321865834,1712574648593,-500.0,0.00061095,120]
[321865835,1712574648602,-500.0,0.00061095,120]
[321865837,1712574648611,-500.0,0.00061095,120]
[321865838,1712574648620,-578.87,0.00061095,120]
[321865840,1712574648629,-561.04,0.00061095,120]